[Event "Late-Titled-Tuesday-Blitz-April-30-2024"]
[Site "Chess.com"]
[Date "2024.04.30"]
[Round "7"]
[White "Boninknights"]
[Black "Mikhal867"]
[Result "1-0"]
[WhiteElo "2378"]
[BlackElo "2533"]
[TimeControl "180+1"]
[EndTime "15:17:34 PDT"]
[Termination "Boninknights won on time"]

1. d4 {[%clk 0:02:59.3]} 1... Nf6 {[%clk 0:02:59.4]} 2. Nf3 {[%clk 0:02:59]}
2... g6 {[%clk 0:02:59.7]} 3. c4 {[%clk 0:02:58.6]} 3... Bg7 {[%clk 0:03:00.2]}
4. Nc3 {[%clk 0:02:58.4]} 4... O-O {[%clk 0:03:00.8]} 5. e4 {[%clk 0:02:58.4]}
5... d6 {[%clk 0:03:01.4]} 6. Be2 {[%clk 0:02:57.9]} 6... e5 {[%clk 0:03:02]} 7.
dxe5 {[%clk 0:02:57]} 7... dxe5 {[%clk 0:03:00.9]} 8. Qxd8 {[%clk 0:02:56.1]}
8... Rxd8 {[%clk 0:03:01]} 9. Bg5 {[%clk 0:02:55.5]} 9... c6 {[%clk 0:02:49.9]}
10. Nxe5 {[%clk 0:02:53.9]} 10... Re8 {[%clk 0:02:50]} 11. O-O-O {[%clk
0:02:52.8]} 11... Nxe4 {[%clk 0:02:17.8]} 12. Nxe4 {[%clk 0:02:50.8]} 12... Bxe5
{[%clk 0:02:17.7]} 13. Bf3 {[%clk 0:02:49.5]} 13... Be6 {[%clk 0:01:54.8]} 14.
b3 {[%clk 0:02:33.8]} 14... Nd7 {[%clk 0:01:40.9]} 15. Nd6 {[%clk 0:02:26.6]}
15... Reb8 {[%clk 0:01:32.9]} 16. Rhe1 {[%clk 0:02:11.9]} 16... Bf6 {[%clk
0:01:32.7]} 17. Bf4 {[%clk 0:02:07.2]} 17... g5 {[%clk 0:01:14.9]} 18. Bg3
{[%clk 0:02:05.3]} 18... g4 {[%clk 0:01:14.4]} 19. Be4 {[%clk 0:02:05]} 19...
Nc5 {[%clk 0:01:14.2]} 20. Bf5 {[%clk 0:01:58.8]} 20... a5 {[%clk 0:01:13.8]}
21. Bxe6 {[%clk 0:01:47.9]} 21... fxe6 {[%clk 0:01:13.6]} 22. Ne4 {[%clk
0:01:47.2]} 22... Nxe4 {[%clk 0:01:09.6]} 23. Bxb8 {[%clk 0:01:44.8]} 23... Nc3
{[%clk 0:01:01.3]} 24. Be5 {[%clk 0:01:31.4]} 24... Bg5+ {[%clk 0:00:57.6]} 25.
Kc2 {[%clk 0:01:29.5]} 25... Nxd1 {[%clk 0:00:54.1]} 26. Rxd1 {[%clk 0:01:28.3]}
26... a4 {[%clk 0:00:53.5]} 27. Rd7 {[%clk 0:01:24.5]} 27... axb3+ {[%clk
0:00:52.8]} 28. Kxb3 {[%clk 0:01:17.5]} 28... Bc1 {[%clk 0:00:45.5]} 29. a4
{[%clk 0:01:12.6]} 29... Ra5 {[%clk 0:00:38]} 30. Bd4 {[%clk 0:00:59.7]} 30...
e5 {[%clk 0:00:34.8]} 31. Bb6 {[%clk 0:00:57.1]} 31... Ra6 {[%clk 0:00:30.9]}
32. Rxb7 {[%clk 0:00:55.4]} 32... h5 {[%clk 0:00:24.8]} 33. a5 {[%clk
0:00:53.6]} 33... h4 {[%clk 0:00:23.3]} 34. Rc7 {[%clk 0:00:49.6]} 34... e4
{[%clk 0:00:06.9]} 35. Rxc6 {[%clk 0:00:44]} 35... Kf7 {[%clk 0:00:07.1]} 36.
Ka4 {[%clk 0:00:40]} 36... Bd2 {[%clk 0:00:05.7]} 37. Kb5 {[%clk 0:00:37.5]}
37... Ra8 {[%clk 0:00:05.8]} 38. a6 {[%clk 0:00:36.7]} 38... Be1 {[%clk
0:00:02.6]} 39. a7 {[%clk 0:00:35.6]} 39... h3 {[%clk 0:00:02.2]} 40. gxh3
{[%clk 0:00:34.4]} 40... gxh3 {[%clk 0:00:02.1]} 41. Rh6 {[%clk 0:00:31.7]}
41... Bd2 {[%clk 0:00:01.1]} 42. Rxh3 {[%clk 0:00:29.8]} 42... Bf4 {[%clk
0:00:00.3]} 43. Rh4 {[%clk 0:00:29.3]} 1-0

[Event "Late-Titled-Tuesday-Blitz-April-30-2024"]
[Site "Chess.com"]
[Date "2024.04.30"]
[Round "7"]
[White "Shiner22"]
[Black "HandKnit"]
[Result "0-1"]
[WhiteElo "2295"]
[BlackElo "2504"]
[TimeControl "180+1"]
[EndTime "15:17:38 PDT"]
[Termination "HandKnit won on time"]

1. e4 {[%clk 0:03:00.9]} 1... c5 {[%clk 0:02:57.8]} 2. d4 {[%clk 0:03:00.6]}
2... cxd4 {[%clk 0:02:57.1]} 3. c3 {[%clk 0:03:01.1]} 3... dxc3 {[%clk 0:02:57]}
4. Nxc3 {[%clk 0:03:02]} 4... Nc6 {[%clk 0:02:56.9]} 5. Nf3 {[%clk 0:03:02.1]}
5... e6 {[%clk 0:02:57]} 6. Bc4 {[%clk 0:03:02.1]} 6... a6 {[%clk 0:02:57.4]} 7.
O-O {[%clk 0:03:02.1]} 7... b5 {[%clk 0:02:57.7]} 8. Bb3 {[%clk 0:03:02.3]} 8...
Na5 {[%clk 0:02:58.2]} 9. Re1 {[%clk 0:02:48.6]} 9... Nxb3 {[%clk 0:02:56.3]}
10. axb3 {[%clk 0:02:48.9]} 10... Bb7 {[%clk 0:02:55.2]} 11. Bf4 {[%clk
0:02:46.8]} 11... Bb4 {[%clk 0:02:29.5]} 12. Qd4 {[%clk 0:02:44.2]} 12... Bxc3
{[%clk 0:02:26.7]} 13. bxc3 {[%clk 0:02:41.4]} 13... f6 {[%clk 0:02:26.3]} 14.
Bd6 {[%clk 0:02:38.3]} 14... Ne7 {[%clk 0:02:24.1]} 15. b4 {[%clk 0:02:24.3]}
15... O-O {[%clk 0:02:17.8]} 16. Nd2 {[%clk 0:02:12.7]} 16... Rf7 {[%clk
0:02:09.2]} 17. c4 {[%clk 0:02:11.3]} 17... f5 {[%clk 0:01:53.2]} 18. Bxe7
{[%clk 0:01:50]} 18... Qxe7 {[%clk 0:01:47.6]} 19. c5 {[%clk 0:01:45.8]} 19...
Raf8 {[%clk 0:01:31.3]} 20. e5 {[%clk 0:01:41.1]} 20... g5 {[%clk 0:01:26.3]}
21. Qd6 {[%clk 0:01:33.6]} 21... Qd8 {[%clk 0:01:24.7]} 22. Nb3 {[%clk
0:01:27.7]} 22... Qa8 {[%clk 0:01:18.4]} 23. Nd4 {[%clk 0:01:13.7]} 23... Bxg2
{[%clk 0:01:14.1]} 24. Rxa6 {[%clk 0:01:12.4]} 24... Qd5 {[%clk 0:01:01]} 25.
Qxd5 {[%clk 0:01:11.8]} 25... Bxd5 {[%clk 0:01:01.9]} 26. Nxb5 {[%clk
0:01:10.1]} 26... f4 {[%clk 0:00:59.9]} 27. Nd6 {[%clk 0:01:05.3]} 27... Rg7
{[%clk 0:00:58.8]} 28. b5 {[%clk 0:01:02]} 28... g4 {[%clk 0:00:58.6]} 29. c6
{[%clk 0:00:51.8]} 29... dxc6 {[%clk 0:00:55.4]} 30. bxc6 {[%clk 0:00:49.4]}
30... g3 {[%clk 0:00:52.8]} 31. fxg3 {[%clk 0:00:47.8]} 31... fxg3 {[%clk
0:00:53.7]} 32. h3 {[%clk 0:00:46.5]} 32... g2 {[%clk 0:00:42]} 33. Rb6 {[%clk
0:00:14.5]} 33... Rg3 {[%clk 0:00:39.3]} 34. c7 {[%clk 0:00:13.4]} 34... Rxh3
{[%clk 0:00:34.8]} 35. Ne4 {[%clk 0:00:09.7]} 35... Rh1+ {[%clk 0:00:25.1]} 36.
Kxg2 {[%clk 0:00:09.6]} 36... Rxe1 {[%clk 0:00:24.8]} 37. Rb8 {[%clk 0:00:09.4]}
37... Bxe4+ {[%clk 0:00:22.1]} 38. Kg3 {[%clk 0:00:08.4]} 38... Rc1 {[%clk
0:00:22.5]} 39. Rb4 {[%clk 0:00:01.2]} 39... Rxc7 {[%clk 0:00:18.4]} 40. Rxe4
{[%clk 0:00:00.6]} 40... Rf5 {[%clk 0:00:18.5]} 0-1

[Event "Late-Titled-Tuesday-Blitz-April-30-2024"]
[Site "Chess.com"]
[Date "2024.04.30"]
[Round "7"]
[White "PawnEatingZombie"]
[Black "masterofpuppets2"]
[Result "0-1"]
[WhiteElo "2213"]
[BlackElo "2463"]
[TimeControl "180+1"]
[EndTime "15:17:39 PDT"]
[Termination "masterofpuppets2 won on time"]

1. e4 {[%clk 0:03:00.9]} 1... e5 {[%clk 0:03:00.2]} 2. Nf3 {[%clk 0:03:00.1]}
2... Nc6 {[%clk 0:03:00.8]} 3. Nc3 {[%clk 0:02:59.3]} 3... Nf6 {[%clk
0:03:00.6]} 4. Bb5 {[%clk 0:02:59.6]} 4... Bc5 {[%clk 0:02:59.8]} 5. Nxe5 {[%clk
0:02:58.6]} 5... Nxe5 {[%clk 0:02:58.1]} 6. d4 {[%clk 0:02:58.4]} 6... Bd6
{[%clk 0:02:58.6]} 7. dxe5 {[%clk 0:02:58.2]} 7... Bxe5 {[%clk 0:02:59.5]} 8.
O-O {[%clk 0:02:52.8]} 8... O-O {[%clk 0:02:55.1]} 9. Bd3 {[%clk 0:02:48.9]}
9... Re8 {[%clk 0:02:43.4]} 10. Qf3 {[%clk 0:02:41.3]} 10... d6 {[%clk
0:02:34.8]} 11. h3 {[%clk 0:02:41.3]} 11... Bd7 {[%clk 0:02:23.9]} 12. Bd2
{[%clk 0:02:32.6]} 12... h6 {[%clk 0:02:06.9]} 13. Rae1 {[%clk 0:02:32.1]} 13...
a6 {[%clk 0:02:06]} 14. Qd1 {[%clk 0:02:31.6]} 14... b5 {[%clk 0:02:05.6]} 15.
f4 {[%clk 0:02:22]} 15... Bd4+ {[%clk 0:02:00.9]} 16. Kh2 {[%clk 0:02:21]} 16...
Bb6 {[%clk 0:01:46.5]} 17. a3 {[%clk 0:02:19.3]} 17... Bc6 {[%clk 0:01:34.1]}
18. Be3 {[%clk 0:01:46.6]} 18... Bxe3 {[%clk 0:01:32.8]} 19. Rxe3 {[%clk
0:01:47.2]} 19... d5 {[%clk 0:01:26.9]} 20. e5 {[%clk 0:01:45.6]} 20... d4
{[%clk 0:01:25.8]} 21. Rg3 {[%clk 0:01:34.6]} 21... dxc3 {[%clk 0:01:24.4]} 22.
exf6 {[%clk 0:01:30.1]} 22... Qxf6 {[%clk 0:01:25.3]} 23. bxc3 {[%clk
0:01:22.7]} 23... Kh8 {[%clk 0:01:11.6]} 24. Qg4 {[%clk 0:01:21.5]} 24... Rad8
{[%clk 0:01:08.6]} 25. f5 {[%clk 0:01:19.2]} 25... Re5 {[%clk 0:01:02.9]} 26. c4
{[%clk 0:01:16.2]} 26... bxc4 {[%clk 0:00:53.9]} 27. Qxc4 {[%clk 0:01:15.9]}
27... a5 {[%clk 0:00:38.4]} 28. Qa6 {[%clk 0:00:55.1]} 28... Qd6 {[%clk
0:00:30.3]} 29. Rg4 {[%clk 0:00:25.7]} 29... Ra8 {[%clk 0:00:24.1]} 30. Qc4
{[%clk 0:00:11.8]} 30... Re4+ {[%clk 0:00:23.4]} 31. Kh1 {[%clk 0:00:08.9]}
31... Rxc4 {[%clk 0:00:23.4]} 32. Bxc4 {[%clk 0:00:08]} 32... f6 {[%clk
0:00:17.3]} 33. Bf7 {[%clk 0:00:06.4]} 33... Bd5 {[%clk 0:00:16.7]} 34. Bg6
{[%clk 0:00:06.4]} 34... Qe5 {[%clk 0:00:14.5]} 35. Rgf4 {[%clk 0:00:02.8]}
35... Rb8 {[%clk 0:00:11.9]} 36. Ra4 {[%clk 0:00:02.1]} 36... Qg3 {[%clk
0:00:10.6]} 37. Rg4 {[%clk 0:00:00.8]} 37... Qxh3+ {[%clk 0:00:09.8]} 38. Kg1
{[%clk 0:00:00.3]} 38... Qxg4 {[%clk 0:00:10.3]} 0-1

[Event "Late-Titled-Tuesday-Blitz-April-30-2024"]
[Site "Chess.com"]
[Date "2024.04.30"]
[Round "7"]
[White "DeTimmerman"]
[Black "SCIM"]
[Result "1-0"]
[WhiteElo "2788"]
[BlackElo "2559"]
[TimeControl "180+1"]
[EndTime "15:17:41 PDT"]
[Termination "DeTimmerman won by resignation"]

1. b4 {[%clk 0:03:00.9]} 1... e5 {[%clk 0:02:55.7]} 2. Bb2 {[%clk 0:03:01.4]}
2... Bxb4 {[%clk 0:02:55.8]} 3. Bxe5 {[%clk 0:03:01.3]} 3... Nf6 {[%clk
0:02:55.5]} 4. Nc3 {[%clk 0:03:02]} 4... c6 {[%clk 0:02:50.3]} 5. a3 {[%clk
0:03:01.9]} 5... Be7 {[%clk 0:02:49.5]} 6. e3 {[%clk 0:03:02]} 6... O-O {[%clk
0:02:48.9]} 7. Nf3 {[%clk 0:03:01.9]} 7... d6 {[%clk 0:02:46.9]} 8. Bg3 {[%clk
0:03:01.6]} 8... Bf5 {[%clk 0:02:40.6]} 9. Bd3 {[%clk 0:02:58.6]} 9... Bg6
{[%clk 0:02:30.7]} 10. Ne2 {[%clk 0:02:58.3]} 10... Nbd7 {[%clk 0:02:27.6]} 11.
Nf4 {[%clk 0:02:58.1]} 11... Nc5 {[%clk 0:02:24.2]} 12. Be2 {[%clk 0:02:58.4]}
12... Re8 {[%clk 0:02:21.4]} 13. O-O {[%clk 0:02:57.4]} 13... Nce4 {[%clk
0:02:18.7]} 14. c4 {[%clk 0:02:56.6]} 14... Nxg3 {[%clk 0:02:17.9]} 15. hxg3
{[%clk 0:02:56.7]} 15... d5 {[%clk 0:02:17.6]} 16. d4 {[%clk 0:02:53.9]} 16...
Be4 {[%clk 0:02:11.2]} 17. Nd2 {[%clk 0:02:44.3]} 17... Bd6 {[%clk 0:02:07]} 18.
Nxe4 {[%clk 0:02:37.8]} 18... Nxe4 {[%clk 0:02:05.7]} 19. cxd5 {[%clk 0:02:20]}
19... Bxf4 {[%clk 0:02:03.5]} 20. gxf4 {[%clk 0:02:15.5]} 20... Nc3 {[%clk
0:02:02.1]} 21. Qc2 {[%clk 0:02:16]} 21... Nxe2+ {[%clk 0:01:55.8]} 22. Qxe2
{[%clk 0:02:16.9]} 22... Qxd5 {[%clk 0:01:56.2]} 23. Rab1 {[%clk 0:02:07.3]}
23... b6 {[%clk 0:01:56]} 24. Qc2 {[%clk 0:01:58.2]} 24... Rad8 {[%clk 0:01:54]}
25. Rfe1 {[%clk 0:01:46]} 25... Rd6 {[%clk 0:01:51.4]} 26. f3 {[%clk 0:01:42.9]}
26... h5 {[%clk 0:01:46.6]} 27. Rbd1 {[%clk 0:01:42.3]} 27... Qa5 {[%clk
0:01:34.5]} 28. a4 {[%clk 0:01:22.4]} 28... Red8 {[%clk 0:01:33.5]} 29. Rc1
{[%clk 0:01:15.7]} 29... h4 {[%clk 0:01:25.5]} 30. Kh2 {[%clk 0:01:09.3]} 30...
Qh5 {[%clk 0:01:23.8]} 31. Qf2 {[%clk 0:01:02.8]} 31... Rg6 {[%clk 0:01:19.1]}
32. e4 {[%clk 0:00:58]} 32... Qh6 {[%clk 0:01:03.2]} 33. Qe3 {[%clk 0:00:58]}
33... Rg3 {[%clk 0:00:54.5]} 34. Re2 {[%clk 0:00:52.1]} 34... Rxd4 {[%clk
0:00:35.5]} 35. Qxd4 {[%clk 0:00:17.2]} 35... Qxf4 {[%clk 0:00:35.8]} 36. Qe3
{[%clk 0:00:17.9]} 36... Rh3+ {[%clk 0:00:35.3]} 37. Kg1 {[%clk 0:00:18.6]}
37... Qh2+ {[%clk 0:00:23.5]} 38. Kf2 {[%clk 0:00:19]} 38... Qg3+ {[%clk
0:00:21.2]} 39. Kg1 {[%clk 0:00:13.2]} 39... Qh2+ {[%clk 0:00:20.7]} 40. Kf1
{[%clk 0:00:13.6]} 40... Rg3 {[%clk 0:00:10.7]} 41. Qg1 {[%clk 0:00:14.1]} 1-0

[Event "Late-Titled-Tuesday-Blitz-April-30-2024"]
[Site "Chess.com"]
[Date "2024.04.30"]
[Round "7"]
[White "h4parah5"]
[Black "artin10862"]
[Result "1-0"]
[WhiteElo "3028"]
[BlackElo "2857"]
[TimeControl "180+1"]
[EndTime "15:17:43 PDT"]
[Termination "h4parah5 won by resignation"]

1. d4 {[%clk 0:03:00.9]} 1... d5 {[%clk 0:02:59]} 2. c4 {[%clk 0:02:55.2]} 2...
dxc4 {[%clk 0:02:57]} 3. e3 {[%clk 0:02:55]} 3... a6 {[%clk 0:02:56]} 4. Bxc4
{[%clk 0:02:54.6]} 4... Nf6 {[%clk 0:02:55.7]} 5. Nf3 {[%clk 0:02:51.9]} 5... e6
{[%clk 0:02:56.3]} 6. O-O {[%clk 0:02:51.3]} 6... c5 {[%clk 0:02:57]} 7. b3
{[%clk 0:02:51]} 7... Nbd7 {[%clk 0:02:55.1]} 8. Bb2 {[%clk 0:02:46.2]} 8... b6
{[%clk 0:02:54.9]} 9. Nbd2 {[%clk 0:02:40.8]} 9... Bb7 {[%clk 0:02:54.5]} 10.
Be2 {[%clk 0:02:39.8]} 10... Be7 {[%clk 0:02:53.7]} 11. dxc5 {[%clk 0:02:39.1]}
11... Bxc5 {[%clk 0:02:48.3]} 12. a3 {[%clk 0:02:38.3]} 12... O-O {[%clk
0:02:46.7]} 13. b4 {[%clk 0:02:35.5]} 13... Be7 {[%clk 0:02:46.4]} 14. Nd4
{[%clk 0:02:33.7]} 14... b5 {[%clk 0:02:28.2]} 15. Bf3 {[%clk 0:02:28.6]} 15...
Qb6 {[%clk 0:02:24.8]} 16. N2b3 {[%clk 0:02:20.7]} 16... Rac8 {[%clk 0:02:21.7]}
17. Bxb7 {[%clk 0:02:19.5]} 17... Qxb7 {[%clk 0:02:21.5]} 18. Na5 {[%clk
0:02:20.4]} 18... Qd5 {[%clk 0:02:18.4]} 19. Ndc6 {[%clk 0:02:18.3]} 19... Rfe8
{[%clk 0:02:05]} 20. Rc1 {[%clk 0:02:15.9]} 20... Bf8 {[%clk 0:01:59.4]} 21.
Qxd5 {[%clk 0:02:05.9]} 21... Nxd5 {[%clk 0:01:58.7]} 22. Rfd1 {[%clk
0:02:05.9]} 22... N7b6 {[%clk 0:01:57.6]} 23. Bd4 {[%clk 0:02:04.8]} 23... Nc4
{[%clk 0:01:51.2]} 24. Nxc4 {[%clk 0:01:51.4]} 24... Rxc6 {[%clk 0:01:50.9]} 25.
Na5 {[%clk 0:01:51.8]} 25... Rcc8 {[%clk 0:01:51]} 26. e4 {[%clk 0:01:50]} 26...
Nf4 {[%clk 0:01:30.8]} 27. Kf1 {[%clk 0:01:49.4]} 27... f6 {[%clk 0:01:27]} 28.
g3 {[%clk 0:01:45.8]} 28... Ng6 {[%clk 0:01:24.5]} 29. Ke2 {[%clk 0:01:41.8]}
29... Kf7 {[%clk 0:01:21.6]} 30. Be3 {[%clk 0:01:31]} 30... Ne7 {[%clk
0:01:01.5]} 31. Nb7 {[%clk 0:01:28.7]} 31... Nc6 {[%clk 0:00:48.8]} 32. Rd7+
{[%clk 0:01:27.2]} 32... Kg6 {[%clk 0:00:33.9]} 33. Nd6 {[%clk 0:01:18.5]} 33...
Ne5 {[%clk 0:00:26.9]} 34. Nxe8 {[%clk 0:01:08.7]} 34... Rxc1 {[%clk 0:00:25.9]}
35. Rxg7+ {[%clk 0:01:06.7]} 35... Bxg7 {[%clk 0:00:26.3]} 36. Bxc1 {[%clk
0:01:07]} 36... Nc4 {[%clk 0:00:16.2]} 37. Nc7 {[%clk 0:01:06.7]} 37... f5
{[%clk 0:00:16.5]} 38. exf5+ {[%clk 0:00:59.6]} 38... Kxf5 {[%clk 0:00:17.4]}
39. Nxa6 {[%clk 0:00:59.4]} 39... Be5 {[%clk 0:00:16.5]} 40. Nc5 {[%clk
0:00:59]} 40... Bd6 {[%clk 0:00:16.7]} 41. Nb3 {[%clk 0:00:57.7]} 41... Ke4
{[%clk 0:00:11.6]} 42. f3+ {[%clk 0:00:55.4]} 42... Kd5 {[%clk 0:00:12]} 43. Kd3
{[%clk 0:00:51.9]} 43... Nb6 {[%clk 0:00:12]} 44. Nd4 {[%clk 0:00:50.9]} 44...
Nc4 {[%clk 0:00:12.1]} 45. Nxb5 {[%clk 0:00:50.7]} 45... Ne5+ {[%clk 0:00:12.7]}
46. Ke2 {[%clk 0:00:50.8]} 46... Bb8 {[%clk 0:00:12.6]} 47. f4 {[%clk
0:00:50.1]} 47... Ng4 {[%clk 0:00:12.6]} 48. h3 {[%clk 0:00:50.1]} 48... Nf6
{[%clk 0:00:13.2]} 49. Kd3 {[%clk 0:00:47.1]} 49... Nh5 {[%clk 0:00:11.6]} 50.
Nc3+ {[%clk 0:00:46.9]} 50... Kc6 {[%clk 0:00:12]} 51. Ne4 {[%clk 0:00:47.5]}
51... Ng7 {[%clk 0:00:12.2]} 52. g4 {[%clk 0:00:46.3]} 52... h5 {[%clk
0:00:11.9]} 53. a4 {[%clk 0:00:46]} 53... hxg4 {[%clk 0:00:10.8]} 54. hxg4
{[%clk 0:00:46.9]} 54... Kd5 {[%clk 0:00:11.4]} 55. a5 {[%clk 0:00:46]} 55...
Kc6 {[%clk 0:00:10.9]} 56. Kc4 {[%clk 0:00:45.8]} 1-0

[Event "Late-Titled-Tuesday-Blitz-April-30-2024"]
[Site "Chess.com"]
[Date "2024.04.30"]
[Round "7"]
[White "CarrotsandPizza"]
[Black "Heliosis11"]
[Result "0-1"]
[WhiteElo "2584"]
[BlackElo "2422"]
[TimeControl "180+1"]
[EndTime "15:17:46 PDT"]
[Termination "Heliosis11 won on time"]

1. e4 {[%clk 0:03:00.9]} 1... c5 {[%clk 0:02:58.3]} 2. Nf3 {[%clk 0:03:00.8]}
2... e6 {[%clk 0:02:57.9]} 3. d4 {[%clk 0:03:01.1]} 3... cxd4 {[%clk 0:02:58.8]}
4. Nxd4 {[%clk 0:03:01.1]} 4... Nc6 {[%clk 0:02:58.8]} 5. Nxc6 {[%clk
0:03:00.8]} 5... bxc6 {[%clk 0:02:58.8]} 6. Nd2 {[%clk 0:03:01.4]} 6... d5
{[%clk 0:02:58.1]} 7. Bd3 {[%clk 0:03:01.4]} 7... Nf6 {[%clk 0:02:58]} 8. O-O
{[%clk 0:03:00.8]} 8... Bd6 {[%clk 0:02:55]} 9. c4 {[%clk 0:03:00.8]} 9... O-O
{[%clk 0:02:53.4]} 10. Qc2 {[%clk 0:03:00]} 10... Ba6 {[%clk 0:02:45.6]} 11. b3
{[%clk 0:02:59.2]} 11... Qc7 {[%clk 0:02:40.7]} 12. g3 {[%clk 0:02:56.8]} 12...
Rfd8 {[%clk 0:02:35.5]} 13. Rb1 {[%clk 0:02:56.5]} 13... h6 {[%clk 0:02:29.8]}
14. Bb2 {[%clk 0:02:52.1]} 14... Be5 {[%clk 0:02:25.5]} 15. Ba3 {[%clk
0:02:51.9]} 15... Rac8 {[%clk 0:02:02.8]} 16. Rfe1 {[%clk 0:02:51.5]} 16... c5
{[%clk 0:01:45.7]} 17. exd5 {[%clk 0:02:43.4]} 17... exd5 {[%clk 0:01:45]} 18.
Nf3 {[%clk 0:02:41.9]} 18... Bd4 {[%clk 0:01:36.2]} 19. Nxd4 {[%clk 0:02:21.4]}
19... cxd4 {[%clk 0:01:37.1]} 20. c5 {[%clk 0:02:19.4]} 20... Qa5 {[%clk
0:01:29.8]} 21. Bxa6 {[%clk 0:02:14]} 21... Qxa6 {[%clk 0:01:27.6]} 22. Bb4
{[%clk 0:01:50.7]} 22... d3 {[%clk 0:01:23.6]} 23. Qb2 {[%clk 0:01:44.3]} 23...
Ne4 {[%clk 0:01:23.8]} 24. Rec1 {[%clk 0:01:30.6]} 24... d4 {[%clk 0:01:17.9]}
25. Rc4 {[%clk 0:01:23.8]} 25... Qf6 {[%clk 0:01:10.4]} 26. Rf1 {[%clk
0:01:18.4]} 26... Qf3 {[%clk 0:00:58.6]} 27. Rxd4 {[%clk 0:01:13.2]} 27... Ng5
{[%clk 0:00:58.7]} 28. Rh4 {[%clk 0:01:05.5]} 28... Qe2 {[%clk 0:00:50.1]} 29.
Bd2 {[%clk 0:00:14.7]} 29... Nf3+ {[%clk 0:00:48.8]} 30. Kg2 {[%clk 0:00:15.3]}
30... Nxd2 {[%clk 0:00:44.9]} 31. Rc1 {[%clk 0:00:13.4]} 31... Nf3 {[%clk
0:00:43.1]} 32. Qxe2 {[%clk 0:00:12.5]} 32... Nxh4+ {[%clk 0:00:43.3]} 33. Kf1
{[%clk 0:00:11.2]} 33... dxe2+ {[%clk 0:00:44.2]} 34. Kxe2 {[%clk 0:00:11.9]}
34... Nf5 {[%clk 0:00:41.3]} 35. b4 {[%clk 0:00:12.5]} 35... Re8+ {[%clk
0:00:36.8]} 36. Kf1 {[%clk 0:00:12.7]} 36... Nd4 {[%clk 0:00:36.2]} 37. a3
{[%clk 0:00:12.1]} 37... Red8 {[%clk 0:00:25.6]} 38. Rc4 {[%clk 0:00:12]} 38...
Ne6 {[%clk 0:00:25.7]} 39. c6 {[%clk 0:00:05.8]} 39... Rd6 {[%clk 0:00:24.6]}
40. b5 {[%clk 0:00:06.1]} 40... Rd1+ {[%clk 0:00:18.8]} 41. Kg2 {[%clk
0:00:05.8]} 41... Ra1 {[%clk 0:00:17.8]} 42. Ra4 {[%clk 0:00:05.1]} 42... Rc7
{[%clk 0:00:17]} 43. Ra6 {[%clk 0:00:03.6]} 43... Nc5 {[%clk 0:00:16.3]} 44. b6
{[%clk 0:00:01.9]} 44... Nxa6 {[%clk 0:00:15.7]} 0-1

[Event "Late-Titled-Tuesday-Blitz-April-30-2024"]
[Site "Chess.com"]
[Date "2024.04.30"]
[Round "7"]
[White "Indefatigable11"]
[Black "MFatigue"]
[Result "1-0"]
[WhiteElo "2391"]
[BlackElo "2472"]
[TimeControl "180+1"]
[EndTime "15:17:46 PDT"]
[Termination "Indefatigable11 won on time"]

1. c4 {[%clk 0:03:00.9]} 1... c5 {[%clk 0:02:59.9]} 2. Nf3 {[%clk 0:02:55.4]}
2... Nf6 {[%clk 0:03:00]} 3. g3 {[%clk 0:02:55.2]} 3... d5 {[%clk 0:03:00.4]} 4.
cxd5 {[%clk 0:02:55]} 4... Nxd5 {[%clk 0:03:01.3]} 5. Bg2 {[%clk 0:02:55]} 5...
Nc6 {[%clk 0:03:01.9]} 6. O-O {[%clk 0:02:54.7]} 6... e5 {[%clk 0:03:02]} 7. Nc3
{[%clk 0:02:53]} 7... Nc7 {[%clk 0:03:02.1]} 8. d3 {[%clk 0:02:49]} 8... Be7
{[%clk 0:03:02.3]} 9. Be3 {[%clk 0:02:45.9]} 9... O-O {[%clk 0:03:00.7]} 10. Rc1
{[%clk 0:02:44.8]} 10... Be6 {[%clk 0:02:50.8]} 11. Qd2 {[%clk 0:02:35.6]} 11...
Qd7 {[%clk 0:02:35.2]} 12. Ne4 {[%clk 0:02:25.9]} 12... b6 {[%clk 0:02:35.2]}
13. Bg5 {[%clk 0:02:19]} 13... Bxa2 {[%clk 0:02:27.2]} 14. Bxe7 {[%clk
0:02:17.5]} 14... Qxe7 {[%clk 0:02:28.1]} 15. Nc3 {[%clk 0:02:16.5]} 15... Bb3
{[%clk 0:02:17.8]} 16. Qe3 {[%clk 0:02:12.6]} 16... Nd5 {[%clk 0:01:45.5]} 17.
Qd2 {[%clk 0:02:03.3]} 17... Nxc3 {[%clk 0:01:38.4]} 18. Qxc3 {[%clk 0:01:59.8]}
18... Bd5 {[%clk 0:01:36.9]} 19. e4 {[%clk 0:01:57.4]} 19... Be6 {[%clk
0:01:30.1]} 20. Nxe5 {[%clk 0:01:56.7]} 20... Nd4 {[%clk 0:01:30.5]} 21. Rfe1
{[%clk 0:01:51.2]} 21... Rfd8 {[%clk 0:01:27.6]} 22. f4 {[%clk 0:01:47.1]} 22...
f6 {[%clk 0:01:27.9]} 23. Nf3 {[%clk 0:01:46.8]} 23... Bg4 {[%clk 0:01:26.5]}
24. Nxd4 {[%clk 0:01:45.8]} 24... Rxd4 {[%clk 0:01:27.4]} 25. e5 {[%clk
0:01:41.7]} 25... Rad8 {[%clk 0:01:27.5]} 26. Re3 {[%clk 0:01:34.5]} 26... fxe5
{[%clk 0:01:14.1]} 27. Rxe5 {[%clk 0:01:33.4]} 27... Qd6 {[%clk 0:01:09.3]} 28.
Rce1 {[%clk 0:01:08.3]} 28... Rxd3 {[%clk 0:00:54.6]} 29. Qc4+ {[%clk
0:01:07.9]} 29... Kf8 {[%clk 0:00:53.5]} 30. Qa6 {[%clk 0:00:46.2]} 30... Qd4+
{[%clk 0:00:30.4]} 31. Kh1 {[%clk 0:00:45.1]} 31... Rd1 {[%clk 0:00:14.2]} 32.
Qxa7 {[%clk 0:00:42]} 32... h6 {[%clk 0:00:08]} 33. Qxb6 {[%clk 0:00:38.6]}
33... Qf2 {[%clk 0:00:04.1]} 34. Qa5 {[%clk 0:00:20.9]} 34... R8d2 {[%clk
0:00:04.1]} 35. Re8+ {[%clk 0:00:19.3]} 35... Kf7 {[%clk 0:00:04.2]} 36. Qa2+
{[%clk 0:00:13.7]} 36... Kf6 {[%clk 0:00:01.5]} 37. Rf8+ {[%clk 0:00:12.7]}
37... Kg6 {[%clk 0:00:01.4]} 38. Qf7+ {[%clk 0:00:11.3]} 1-0